fUST/lending_fUST_20250116
["ID","MTS","AMOUNT","RATE_DAILY","PERIOD"]
[349160105,1736998248489,-4424.99,0.00019452,3]
[349160107,1736998248500,-1034.64,0.00019452,3]
[349160109,1736998248510,-500.0,0.00019452,3]
[349160111,1736998248520,-822.6,0.00019452,3]
[349160113,1736998248531,-500.0,0.00019452,3]
[349160115,1736998248542,-500.0,0.00019452,3]
[349160117,1736998248552,-2234.11,0.00019452,3]
[349160119,1736998248563,-1807.82,0.00019452,3]
[349160121,1736998248573,-604.48,0.00019452,3]
[349160123,1736998248582,-968.9,0.00019452,3]
[349160125,1736998248591,-500.0,0.00019452,3]
[349160127,1736998248603,-500.0,0.00019452,3]
[349160129,1736998248613,-5381.23,0.00019452,3]
[349160131,1736998248623,-511.48961099,0.00019452,3]
[349160133,1736998248634,-500.0,0.00019452,3]
[349160135,1736998248644,-500.0,0.00019452,3]
[349160137,1736998248653,-500.0,0.00019452,3]
[349160139,1736998248663,-500.0,0.00019452,3]
[349160141,1736998248673,-504.47,0.00019452,3]
[349160143,1736998248683,-500.0,0.00019452,3]
[349160145,1736998248692,-28563.65708435,0.00019452,3]
[349160234,1736998249738,-209.55685631,0.00019314,2]
[349160236,1736998249748,-26919.37811146,0.00019452,3]
[349160443,1736999039358,160.155477,0.00013973,2]
[349160497,1736999433335,-500.0,0.00015129,2]
[349160498,1736999433345,-500.0,0.00015926,2]
[349160500,1736999433355,-500.0,0.00016764,2]
[349160502,1736999433371,-500.0,0.00017646,2]
[349160504,1736999433381,-599.087,0.0001848,2]
[349160506,1736999433390,-500.0,0.00018575,2]
[349160508,1736999433399,-393.4702083,0.000189,2]
[349160509,1736999433412,-160.64052646,0.00019078,2]
[349160510,1736999433422,-300.0,0.00019172,2]
[349160511,1736999433431,-502.32626281,0.00019173,2]
[349160512,1736999433441,-501.74868722,0.00019173,2]
[349160513,1736999433451,-159.05,0.00019173,2]
[349160514,1736999433460,-196.84734716,0.00019173,2]
[349160515,1736999433470,-500.0,0.00019173,2]
[349160516,1736999433480,-431.28415815,0.00019177,2]
[349160517,1736999433489,-866.9,0.00019178,2]
[349160518,1736999433499,-500.0,0.00019178,2]
[349160519,1736999433509,-500.0,0.00019178,2]
[349160520,1736999433519,-605.76,0.00019178,2]
[349160521,1736999433530,-500.0,0.00019178,2]
[349160522,1736999433539,-500.0,0.00019178,2]
[349160523,1736999433549,-500.0,0.00019178,2]
[349160524,1736999433559,-500.0,0.00019178,2]
[349160525,1736999433569,-500.0,0.00019178,2]
[349160526,1736999433579,-562.4614175,0.00019178,2]
[349160527,1736999433589,-349.65919046,0.00019178,2]
[349160528,1736999433598,-714.65,0.00019178,2]
[349160529,1736999433607,-500.0,0.00019178,2]
[349160530,1736999433617,-500.0,0.00019178,2]
[349160531,1736999433627,-500.0,0.00019178,2]
[349160532,1736999433637,-500.0,0.00019178,2]
[349160533,1736999433648,-500.0,0.00019178,2]
[349160534,1736999433657,-500.0,0.00019178,2]
[349160535,1736999433668,-500.0,0.00019178,2]
[349160536,1736999433677,-500.0,0.00019178,2]
[349160537,1736999433689,-534.89,0.00019178,2]
[349160538,1736999433702,-500.0,0.00019178,7]
[349160539,1736999433713,-370.6742868,0.00019178,2]
[349160540,1736999433723,-500.0,0.00019178,2]
[349160541,1736999433734,-500.0,0.00019178,2]
[349160542,1736999433744,-500.0,0.00019178,2]
[349160543,1736999433757,-500.0,0.00019178,2]
[349160544,1736999433768,-802.93,0.00019178,2]
[349160545,1736999433779,-500.0,0.00019178,2]
[349160546,1736999433790,-500.0,0.00019178,2]
[349160547,1736999433801,-500.0,0.00019178,2]
[349160548,1736999433811,-646.17,0.00019178,2]
[349160549,1736999433821,-560.44,0.00019178,2]
[349160550,1736999433831,-500.0,0.00019178,2]
[349160551,1736999433841,-212.93344001,0.00019178,2]
[349160552,1736999433851,-500.0,0.00019178,2]
[349160553,1736999433861,-500.0,0.00019178,2]
[349160554,1736999433870,-500.0,0.00019178,2]
[349160555,1736999433880,-500.0,0.00019178,2]
[349160556,1736999433890,-500.0,0.00019178,2]
[349160557,1736999433900,-500.0,0.00019178,2]
[349160558,1736999433911,-500.0,0.00019178,2]
[349160559,1736999433921,-500.0,0.00019178,2]
[349160560,1736999433931,-500.0,0.00019178,2]
[349160561,1736999433940,-500.0,0.00019178,2]
[349160562,1736999433950,-745.99,0.00019178,2]
[349160563,1736999433960,-528.72986179,0.00019178,2]
[349160564,1736999433970,-500.0,0.00019178,2]
[349160565,1736999433980,-500.0,0.00019178,2]
[349160566,1736999433990,-500.0,0.00019178,2]
[349160567,1736999434001,-500.0,0.00019178,2]
[349160568,1736999434013,-967.46,0.00019178,2]
[349160569,1736999434023,-500.0,0.00019178,2]
[349160570,1736999434034,-616.22,0.00019178,2]
[349160571,1736999434043,-799.65,0.00019178,2]
[349160572,1736999434053,-500.0,0.00019178,2]
[349160573,1736999434063,-500.0,0.00019178,2]
[349160574,1736999434073,-500.0,0.00019178,2]
[349160575,1736999434082,-500.0,0.00019178,2]
[349160576,1736999434092,-500.0,0.00019178,2]
[349160577,1736999434102,-500.0,0.00019178,2]
[349160578,1736999434113,-588.3,0.00019178,2]
[349160579,1736999434123,-1157.42,0.00019178,2]
[349160580,1736999434133,-500.0,0.00019178,2]
[349160581,1736999434143,-500.0,0.00019178,2]
[349160582,1736999434153,-500.0,0.00019178,2]
[349160583,1736999434163,-507.62932721,0.00019178,2]
[349160584,1736999434174,-500.0,0.00019178,2]
[349160585,1736999434184,-500.0,0.00019178,2]
[349160586,1736999434195,-951.54,0.00019178,2]
[349160587,1736999434207,-500.0,0.00019178,2]
[349160588,1736999434218,-500.0,0.00019178,2]
[349160589,1736999434227,-500.0,0.00019178,2]
[349160590,1736999434237,-500.0,0.00019178,2]
[349160591,1736999434247,-500.0,0.00019178,2]
[349160592,1736999434258,-836.43,0.00019178,2]
[349160593,1736999434268,-500.0,0.00019178,2]
[349160594,1736999434278,-500.0,0.00019178,2]
[349160595,1736999434288,-1485.88,0.00019178,2]
[349160596,1736999434298,-500.0,0.00019178,2]
[349160597,1736999434309,-500.0,0.00019178,2]
[349160598,1736999434318,-815.32,0.00019178,2]
[349160599,1736999434327,-500.0,0.00019178,2]
[349160600,1736999434338,-500.0,0.00019178,2]
[349160601,1736999434347,-500.0,0.00019178,2]
[349160602,1736999434358,-1239.76,0.00019178,2]
[349160603,1736999434367,-690.4,0.00019178,2]
[349160604,1736999434378,-719.78,0.00019178,2]
[349160605,1736999434388,-500.0,0.00019178,2]
[349160606,1736999434398,-793.0,0.00019178,2]
[349160607,1736999434408,-500.0,0.00019178,2]
[349160608,1736999434417,-500.0,0.00019178,2]
[349160609,1736999434428,-586.8,0.00019178,2]
[349160610,1736999434437,-1591.1,0.00019178,2]
[349160611,1736999434447,-500.0,0.00019178,2]
[349160612,1736999434457,-500.0,0.00019178,2]
[349160613,1736999434467,-500.0,0.00019178,2]
[349160614,1736999434476,-500.0,0.00019178,2]
[349160615,1736999434486,-492.96476629,0.00019178,2]
[349160616,1736999434496,-500.0,0.00019178,2]
[349160617,1736999434507,-581.95,0.00019178,2]
[349160618,1736999434517,-636.88804073,0.00019178,2]
[349160619,1736999434527,-500.0,0.00019178,2]
[349160620,1736999434538,-516.6,0.00019178,2]
[349160621,1736999434547,-500.0,0.00019178,2]
[349160622,1736999434557,-838.24,0.00019178,2]
[349160623,1736999434566,-1019.02,0.00019178,2]
[349160624,1736999434576,-500.0,0.00019178,2]
[349160625,1736999434586,-500.0,0.00019178,2]
[349160626,1736999434595,-654.26,0.00019178,2]
[349160627,1736999434605,-927.86,0.00019178,2]
[349160628,1736999434614,-500.0,0.00019178,2]
[349160629,1736999434624,-500.0,0.00019178,2]
[349160630,1736999434634,-500.0,0.00019178,2]
[349160631,1736999434644,-574.63,0.00019178,2]
[349160632,1736999434653,-500.0,0.00019178,2]
[349160633,1736999434663,-671.6,0.00019178,2]
[349160634,1736999434672,-950.59,0.00019178,2]
[349160635,1736999434682,-1534.61,0.00019178,2]
[349160636,1736999434691,-500.0,0.00019178,2]
[349160637,1736999434909,-500.0,0.00019178,2]
[349160638,1736999434920,-500.0,0.00019178,2]
[349160639,1736999434930,-1735.23,0.00019178,2]
[349160640,1736999434940,-545.52,0.00019178,2]
[349160641,1736999434949,-500.0,0.00019178,2]
[349160642,1736999434958,-500.0,0.00019178,2]
[349160643,1736999434968,-500.0,0.00019178,2]
[349160644,1736999434978,-500.0,0.00019178,2]
[349160645,1736999434988,-500.0,0.00019178,2]
[349160646,1736999434999,-500.0,0.00019178,2]
[349160647,1736999435009,-500.0,0.00019178,2]
[349160648,1736999435018,-5705.63,0.00019178,2]
[349160649,1736999435028,-610.05,0.00019178,2]
[349160650,1736999435038,-12989.64,0.00019178,2]
[349160651,1736999435048,-500.0,0.00019178,2]
[349160652,1736999435058,-500.0,0.00019178,2]
[349160653,1736999435068,-817.08,0.00019178,2]
[349160654,1736999435077,-500.0,0.00019178,2]
[349160655,1736999435086,-500.0,0.00019178,2]
[349160656,1736999435095,-735.31,0.00019178,2]
[349160657,1736999435106,-691.42,0.00019178,2]
[349160658,1736999435116,-1488.89,0.00019178,2]
[349160659,1736999435126,-500.0,0.00019178,2]
[349160660,1736999435136,-500.0,0.00019178,2]
[349160661,1736999435146,-500.0,0.00019178,2]
[349160662,1736999435156,-500.0,0.00019178,2]
[349160663,1736999435166,-500.0,0.00019178,2]
[349160664,1736999435176,-11687.88,0.00019178,2]
[349160665,1736999435186,-500.0,0.00019178,2]
[349160666,1736999435196,-500.0,0.00019178,2]
[349160667,1736999435208,-657.9,0.00019178,2]
[349160668,1736999435217,-36379.69,0.00019178,2]
[349160669,1736999435227,-563.28014478,0.00019178,2]
[349160670,1736999435236,-500.0,0.00019178,2]
[349160671,1736999435247,-500.0,0.00019178,2]
[349160672,1736999435257,-500.0,0.00019178,2]
[349160673,1736999435267,-500.0,0.00019178,2]
[349160674,1736999435277,-4951.92,0.00019178,2]
[349160675,1736999435288,-640.58,0.00019178,2]
[349160676,1736999435298,-4202.14,0.00019178,2]
[349160677,1736999435308,-1952.4,0.00019178,2]
[349160678,1736999435318,-500.0,0.00019178,2]
[349160679,1736999435328,-457.90584092,0.00019178,2]
[349160680,1736999435338,-2461.15,0.00019178,2]
[349160681,1736999435349,-1014.38,0.00019178,2]
[349160682,1736999435359,-500.0,0.00019178,2]
[349160683,1736999435369,-885.05,0.00019178,2]
[349160684,1736999435379,-2036.7,0.00019178,2]
[349160685,1736999435389,-500.0,0.00019178,2]
[349160686,1736999435398,-381.42813632,0.00019178,2]
[349160917,1736999441030,-960.17186368,0.00019178,2]
[349160919,1736999441040,-1561.16546132,0.00019178,2]
[349160944,1736999441288,-14975.08453868,0.00019178,2]
[349160946,1736999441299,-500.0,0.00019178,2]
[349160948,1736999441309,-500.0,0.00019178,2]
[349160950,1736999441320,-500.0,0.00019178,2]
[349160952,1736999441330,-963.68,0.00019178,2]
[349160954,1736999441341,-500.0,0.00019178,2]
[349160956,1736999441351,-642.75,0.00019178,2]
[349160958,1736999441362,-500.0,0.00019178,2]
[349160960,1736999441372,-500.0,0.00019178,2]
[349160962,1736999441382,-500.0,0.00019178,2]
[349160964,1736999441392,-3478.77,0.00019178,2]
[349160967,1736999441402,-1316.85,0.00019178,2]
[349160968,1736999441412,-357.4910739,0.00019178,2]
[349160970,1736999441422,-500.0,0.00019178,2]
[349160973,1736999441432,-1347.85,0.00019178,2]
[349160975,1736999441442,-500.0,0.00019178,2]
[349160976,1736999441451,-500.0,0.00019178,2]
[349160979,1736999441462,-3871.87,0.00019178,2]
[349160980,1736999441471,-997.51,0.00019178,2]
[349160982,1736999441481,-391.67879441,0.00019178,2]
[349160984,1736999441490,-500.0,0.00019178,2]
[349160986,1736999441501,-500.0,0.00019178,2]
[349160988,1736999441512,-710.12,0.00019178,2]
[349160991,1736999441523,-1954.85,0.00019178,2]
[349160993,1736999441533,-500.0,0.00019178,2]
[349160994,1736999441542,-502.76907623,0.00019178,2]
[349160997,1736999441552,-500.0,0.00019178,2]
[349160998,1736999441562,-988.65,0.00019178,2]
[349161000,1736999441572,-500.0,0.00019178,2]
[349161002,1736999441582,-847.79,0.00019178,2]
[349161004,1736999441592,-500.0,0.00019178,2]
[349161006,1736999441601,-500.0,0.00019178,2]
[349161008,1736999441612,-500.0,0.00019178,2]
[349161010,1736999441622,-500.0,0.00019178,2]
[349161013,1736999441632,-500.0,0.00019178,2]
[349161014,1736999441641,-618.9604127,0.00019178,2]
[349161016,1736999441651,-500.0,0.00019178,2]
[349161019,1736999441660,-434.57087326,0.00019178,2]
[349161021,1736999441670,-50834.68,0.00019178,2]
[349161022,1736999441680,-500.0,0.00019178,2]
[349161024,1736999441689,-500.0,0.00019178,2]
[349161027,1736999441699,-500.0,0.00019178,2]
[349161029,1736999441709,-500.0,0.00019178,2]
[349161031,1736999441718,-2130.86,0.00019178,2]
[349161033,1736999441728,-4708.58,0.00019178,2]
[349161035,1736999441737,-905.31,0.00019178,2]
[349161037,1736999441747,-1544.02,0.00019178,2]
[349161039,1736999441757,-500.0,0.00019178,2]
[349161040,1736999441767,-528.92,0.00019178,2]
[349161042,1736999441777,-500.0,0.00019178,2]
[349161045,1736999441787,-500.0,0.00019178,2]
[349161047,1736999441797,-2659.07,0.00019178,2]
[349161048,1736999441807,-1000.0,0.00019178,7]
[349161051,1736999441817,-1592.88,0.00019178,2]
[349161053,1736999441827,-500.0,0.00019178,2]
[349161055,1736999441837,-2064.76,0.00019178,2]
[349161057,1736999441846,-500.0,0.00019178,2]
[349161059,1736999441855,-2634.17,0.00019178,2]
[349161061,1736999441866,-500.0,0.00019178,2]
[349161062,1736999441876,-506.26031359,0.00019178,2]
[349161065,1736999441885,-3119.49,0.00019178,2]
[349161067,1736999441895,-500.0,0.00019178,2]
[349161068,1736999441904,-1115.94,0.00019178,2]
[349161070,1736999441913,-500.0,0.00019178,2]
[349161072,1736999441923,-500.0,0.00019178,2]
[349161075,1736999441932,-500.0,0.00019178,2]
[349161076,1736999441942,-500.0,0.00019178,2]
[349161079,1736999441952,-500.0,0.00019178,2]
[349161080,1736999441961,-500.0,0.00019178,2]
[349161083,1736999441970,-500.0,0.00019178,2]
[349161084,1736999441980,-500.0,0.00019178,2]
[349161086,1736999441989,-575.96,0.00019178,2]
[349161089,1736999441999,-831.36,0.00019178,2]
[349161091,1736999442009,-500.0,0.00019178,2]
[349161093,1736999442019,-501.18220011,0.00019178,2]
[349161094,1736999442028,-500.0,0.00019178,2]
[349161096,1736999442037,-500.0,0.00019178,2]
[349161098,1736999442046,-500.0,0.00019178,2]
[349161100,1736999442056,-500.0,0.00019178,2]
[349161115,1736999442187,-2413.93,0.00019178,2]
[349161117,1736999442197,-564.32,0.00019178,2]
[349161119,1736999442210,-655.27,0.00019178,2]
[349161121,1736999442220,-500.0,0.00019178,2]
[349161123,1736999442230,-500.0,0.00019178,2]
[349161125,1736999442239,-500.0,0.00019178,2]
[349161127,1736999442252,-500.27,0.00019178,2]
[349161129,1736999442261,-1245.45,0.00019178,2]
[349161131,1736999442271,-500.0,0.00019178,2]
[349161133,1736999442284,-500.0,0.00019178,2]
[349161135,1736999442293,-500.0,0.00019178,2]
[349161137,1736999442303,-500.0,0.00019178,2]
[349161139,1736999442313,-5467.9,0.00019178,2]
[349161141,1736999442322,-160.64052646,0.00019195,2]
[349161143,1736999442332,-605.67768468,0.000192,2]
[349161145,1736999442341,-536.0,0.00019201,2]
[349161147,1736999442351,-2068.0,0.00019201,2]
[349161149,1736999442360,-2310.0,0.00019201,2]
[349161151,1736999442371,-395.0,0.00019201,2]
[349161153,1736999442384,-326.2544535,0.00019257,2]
[349161155,1736999442393,-160.64052646,0.00019313,2]
[349161156,1736999442403,-866.9,0.00019315,3]
[349161158,1736999442412,-500.0,0.00019315,3]
[349161160,1736999442422,-605.76,0.00019315,3]
[349161162,1736999442431,-460.60614437,0.00019315,3]
[349161164,1736999442440,-500.0,0.00019315,3]
[349161166,1736999442451,-500.0,0.00019315,3]
[349161168,1736999442461,-500.0,0.00019315,3]
[349161170,1736999442471,-500.0,0.00019315,3]
[349161172,1736999442481,-714.65,0.00019315,3]
[349161174,1736999442491,-500.0,0.00019315,3]
[349161176,1736999442502,-500.0,0.00019315,3]
[349161178,1736999442511,-500.0,0.00019315,3]
[349161180,1736999442521,-500.0,0.00019315,3]
[349161182,1736999442531,-500.0,0.00019315,3]
[349161184,1736999442540,-500.0,0.00019315,3]
[349161186,1736999442550,-500.0,0.00019315,3]
[349161188,1736999442560,-500.0,0.00019315,3]
[349161190,1736999442570,-534.89,0.00019315,3]
[349161192,1736999442580,-500.0,0.00019315,3]
[349161194,1736999442589,-484.09870095,0.00019315,3]
[349161196,1736999442599,-500.0,0.00019315,3]
[349161198,1736999442608,-500.0,0.00019315,3]
[349161200,1736999442618,-802.93,0.00019315,3]
[349161202,1736999442628,-500.0,0.00019315,3]
[349161204,1736999442637,-500.0,0.00019315,3]
[349161206,1736999442647,-500.0,0.00019315,3]
[349161208,1736999442657,-646.17,0.00019315,3]
[349161210,1736999442667,-560.44,0.00019315,3]
[349161212,1736999442677,-500.0,0.00019315,3]
[349161214,1736999442687,-500.0,0.00019315,3]
[349161216,1736999442696,-500.0,0.00019315,3]
[349161218,1736999442705,-500.0,0.00019315,3]
[349161219,1736999442714,-500.0,0.00019315,3]
[349161222,1736999442724,-500.0,0.00019315,3]
[349161223,1736999442733,-500.0,0.00019315,3]
[349161224,1736999442743,-500.0,0.00019315,3]
[349161225,1736999442753,-500.0,0.00019315,3]
[349161226,1736999442763,-500.0,0.00019315,3]
[349161227,1736999442772,-500.0,0.00019315,3]
[349161228,1736999442782,-745.99,0.00019315,3]
[349161229,1736999442792,-500.0,0.00019315,3]
[349161230,1736999442801,-500.0,0.00019315,3]
[349161231,1736999442811,-251.85555499,0.00019315,3]
[349161232,1736999442820,-500.0,0.00019315,3]
[349161233,1736999442830,-967.46,0.00019315,3]
[349161234,1736999442840,-500.0,0.00019315,3]
[349161235,1736999442849,-616.22,0.00019315,3]
[349161236,1736999442859,-799.65,0.00019315,3]
[349161237,1736999442869,-500.0,0.00019315,3]
[349161238,1736999442878,-626.06865971,0.00019315,3]
[349161240,1736999442888,-500.0,0.00019315,3]
[349161242,1736999442897,-500.0,0.00019315,3]
[349161244,1736999442907,-500.0,0.00019315,3]
[349161246,1736999442917,-500.0,0.00019315,3]
[349161248,1736999442926,-588.3,0.00019315,3]
[349161250,1736999442935,-1157.42,0.00019315,3]
[349161252,1736999442944,-500.0,0.00019315,3]
[349161253,1736999442954,-500.0,0.00019315,3]
[349161256,1736999442964,-500.0,0.00019315,3]
[349161258,1736999442973,-500.0,0.00019315,3]
[349161260,1736999442983,-349.65140026,0.00019315,3]
[349161261,1736999442992,-951.54,0.00019315,3]
[349161263,1736999443002,-500.0,0.00019315,3]
[349161265,1736999443012,-500.0,0.00019315,3]
[349161268,1736999443022,-500.0,0.00019315,3]
[349161270,1736999443032,-500.0,0.00019315,3]
[349161271,1736999443042,-500.0,0.00019315,3]
[349161274,1736999443051,-836.43,0.00019315,3]
[349161276,1736999443061,-500.0,0.00019315,3]
[349161278,1736999443070,-500.0,0.00019315,3]
[349161280,1736999443080,-1485.88,0.00019315,3]
[349161282,1736999443089,-500.0,0.00019315,3]
[349161283,1736999443099,-541.29881703,0.00019315,3]
[349161286,1736999443109,-815.32,0.00019315,3]
[349161288,1736999443119,-500.0,0.00019315,3]
[349161290,1736999443129,-500.0,0.00019315,3]
[349161292,1736999443139,-500.0,0.00019315,3]
[349161294,1736999443148,-1239.76,0.00019315,3]
[349161295,1736999443157,-690.4,0.00019315,3]
[349161298,1736999443167,-719.78,0.00019315,3]
[349161299,1736999443177,-500.0,0.00019315,3]
[349161302,1736999443187,-793.0,0.00019315,3]
[349161303,1736999443196,-500.0,0.00019315,3]
[349161305,1736999443209,-517.51477687,0.00019315,3]
[349161308,1736999443219,-586.8,0.00019315,3]
[349161309,1736999443229,-1591.1,0.00019315,3]
[349161311,1736999443239,-452.07425963,0.00019315,3]
[349161313,1736999443249,-500.0,0.00019315,3]
[349161316,1736999443261,-500.0,0.00019315,3]
[349161318,1736999443270,-500.0,0.00019315,3]
[349161320,1736999443280,-500.0,0.00019315,3]
[349161322,1736999443291,-581.95,0.00019315,3]
[349161324,1736999443301,-500.0,0.00019315,3]
[349161327,1736999443311,-516.6,0.00019315,3]
[349161329,1736999443320,-500.0,0.00019315,3]
[349161330,1736999443331,-838.24,0.00019315,3]
[349161334,1736999443341,-1019.02,0.00019315,3]
[349161337,1736999443350,-500.0,0.00019315,3]
[349161339,1736999443360,-500.0,0.00019315,3]
[349161342,1736999443370,-654.26,0.00019315,3]
[349161345,1736999443379,-927.86,0.00019315,3]
[349161348,1736999443389,-500.0,0.00019315,3]
[349161350,1736999443398,-500.0,0.00019315,3]
[349161352,1736999443407,-500.0,0.00019315,3]
[349161354,1736999443416,-574.63,0.00019315,3]
[349161356,1736999443426,-500.0,0.00019315,3]
[349161358,1736999443435,-671.6,0.00019315,3]
[349161360,1736999443445,-950.59,0.00019315,3]
[349161362,1736999443455,-1534.61,0.00019315,3]
[349161364,1736999443464,-500.0,0.00019315,3]
[349161366,1736999443473,-500.0,0.00019315,3]
[349161368,1736999443482,-500.0,0.00019315,3]
[349161370,1736999443492,-1735.23,0.00019315,3]
[349161372,1736999443502,-545.52,0.00019315,3]
[349161374,1736999443511,-500.0,0.00019315,3]
[349161376,1736999443521,-500.0,0.00019315,3]
[349161378,1736999443531,-500.0,0.00019315,3]
[349161380,1736999443540,-500.0,0.00019315,3]
[349161382,1736999443550,-500.0,0.00019315,3]
[349161385,1736999443559,-500.0,0.00019315,3]
[349161388,1736999443568,-500.0,0.00019315,3]
[349161391,1736999443578,-610.05,0.00019315,3]
[349161394,1736999443587,-12989.64,0.00019315,3]
[349161397,1736999443596,-500.0,0.00019315,3]
[349161400,1736999443606,-500.0,0.00019315,3]
[349161403,1736999443615,-817.08,0.00019315,3]
[349161406,1736999443624,-500.0,0.00019315,3]
[349161409,1736999443635,-500.0,0.00019315,3]
[349161412,1736999443644,-735.31,0.00019315,3]
[349161414,1736999443654,-691.42,0.00019315,3]
[349161416,1736999443663,-1488.89,0.00019315,2]
[349161418,1736999443672,-500.0,0.00019315,3]
[349161420,1736999443682,-500.0,0.00019315,3]
[349161422,1736999443692,-217.78986341,0.00019315,3]
[349161424,1736999443701,-500.0,0.00019315,3]
[349161426,1736999443711,-11687.88,0.00019315,3]
[349161428,1736999443720,-500.0,0.00019315,3]
[349161430,1736999443730,-500.0,0.00019315,3]
[349161432,1736999443740,-657.9,0.00019315,3]
[349161434,1736999443749,-36379.69,0.00019315,3]
[349161436,1736999443760,-500.0,0.00019315,3]
[349161438,1736999443769,-500.0,0.00019315,3]
[349161440,1736999443779,-168.22703687,0.00019315,3]
[349161442,1736999443788,-500.0,0.00019315,3]
[349161444,1736999443798,-1358.9016703,0.00019315,3]
[349161470,1736999444036,-3593.0183297,0.00019315,3]
[349161472,1736999444047,-640.58,0.00019315,3]
[349161474,1736999444057,-4202.14,0.00019315,3]
[349161476,1736999444066,-1952.4,0.00019315,3]
[349161478,1736999444077,-500.0,0.00019315,3]
[349161480,1736999444086,-178.71378159,0.00019315,3]
[349161855,1737000197016,160.532133,0.00013973,2]
[349161856,1737000329237,460.98,0.00025,120]
[349161974,1737000632864,-502.12904377,0.00017297,14]
[349161976,1737000632874,-553.24095623,0.00017472,14]
[349161978,1737000632886,-4446.75904377,0.00017472,14]
[349161980,1737000632895,-157.0,0.00017648,2]
[349161982,1737000632905,-298.0,0.00017648,2]
[349161984,1737000632915,-300.0,0.00018135,2]
[349161986,1737000632924,-18018.8415395,0.00018136,2]
[349161988,1737000632934,-183.52,0.00018436,2]
[349161990,1737000632943,-588.67,0.0001848,2]
[349161992,1737000632953,-157.0,0.0001858,2]
[349161994,1737000632962,-152.0,0.00018677,2]
[349161996,1737000632973,-395.0,0.00018681,2]
[349161998,1737000632983,-152.0,0.00018932,2]
[349162000,1737000632993,-152.0,0.00018932,2]
[349162002,1737000633003,-152.0,0.00018932,2]
[349162004,1737000633012,-152.0,0.00018932,2]
[349162005,1737000633023,-152.0,0.00018932,2]
[349162007,1737000633033,-152.0,0.00018932,2]
[349162008,1737000633042,-152.0,0.00018932,2]
[349162010,1737000633051,-152.0,0.00018932,2]
[349162011,1737000633061,-152.0,0.00018932,2]
[349162013,1737000633071,-152.0,0.00018932,2]
[349162014,1737000633081,-152.0,0.00018932,2]
[349162015,1737000633091,-152.0,0.00018932,2]
[349162016,1737000633101,-181.94,0.00018932,2]
[349162017,1737000633111,-6797.1154639,0.00018947,2]
[349162018,1737000633121,-181.3091196,0.00019078,2]
[349162019,1737000633130,-3000.0,0.000191,2]
[349162020,1737000633140,-200.0,0.000191,4]
[349162021,1737000633150,-190.0,0.000191,4]
[349162022,1737000633160,-190.0,0.000191,5]
[349162023,1737000633170,-190.0,0.000191,6]
[349162024,1737000633180,-210.0,0.000191,4]
[349162025,1737000633189,-210.0,0.000191,5]
[349162026,1737000633342,-247.0,0.0001911,2]
[349162027,1737000633352,-3000.0,0.0001911,2]